{"text_format":"3","workbook":"xlsx","n_sheets":1,"sheets":["Udgiftsrapport"],"not_rendered":{"images":2,"defined_names":12},"read":"whole","date_system":"1900"}

{"sheet":"Udgiftsrapport","index":0,"n_rows":24,"n_cols":13,"rows_kept":24,"merged":[[3,2,3,3],[3,5,3,6],[3,9,3,10],[4,2,4,3],[4,5,4,6],[4,9,4,10],[5,2,5,3],[5,5,5,6],[5,9,5,10],[6,2,6,3],[6,5,6,6],[6,9,6,10],[7,9,7,10]]}
[null,"UDGIFTSRAPPORT"]
[null,"CONTOSO, LTD"]
[null,"123 South Main Street, North Buffalo, NY 12345"]
[null,"TELEFON",{"v":4255550121,"d":"4255 55 01 21"},null,"NAVN","Kim Abercrombie",null,null,"FORMÅL","Årligt salgsseminar",null,"KILOMETERTAKST",{"v":3,"d":"kr. 3.00/km"}]
[null,"FAX",{"v":4255550122,"d":"4255 55 01 22"},null,"AFDELING","Salg",null,null,"BEGYNDER",{"$f":"IFERROR(MIN(Udgifter[DATO]),\"\")","v":"2018-06-04"},null,"FORPLEJNINGSGEBYR",{"v":180,"d":"kr. 180.00/dag"}]
[null,"MAIL","info@contoso.com",null,"STILLING","Administrerende direktør",null,null,"SLUTTER",{"$f":"IFERROR(MAX(Udgifter[DATO]),\"\")","v":"2018-07-04"},null,"HOTELGEBYR",{"v":1200,"d":"kr. 1,200.00/nat"}]
[null,"WEB","www.contoso.com",null,"LEDER","Michael Tucker",null,null,"UDARBEJDET AF ","Kim Abercrombie",null,"TELEFONGEBYR",{"v":60,"d":"kr. 60.00/dag"}]
[{"$nulls":8},"GODKENDT AF","Michael Tucker",null,"DIV. TAKST",{"v":300,"d":"kr. 300.00/dag"}]
[]
[null,"DATO","KONTO","BESKRIVELSE","HOTEL","TRANSPORT","FORPLEJNING","TELEFON","DIV.","KILOMETERTÆLLER \nSTART","KILOMETERTÆLLER \nSLUT","KØRTE KILOMETER \nI ALT","I ALT "]
[null,{"$f":"TODAY()","v":"2018-06-04"},"Salg","Kørte kilometer",{"$nulls":4},{"v":300,"d":"kr. 300.00"},{"v":11378.5,"d":"11,378.5km"},{"v":11456.2,"d":"11,456.2km"},{"$f":"IF(COUNTA(Udgifter[[#This Row],[KILOMETERTÆLLER \nSTART]:[KILOMETERTÆLLER \nSLUT]])=2,(Udgifter[[#This Row],[KILOMETERTÆLLER \nSLUT]]-Udgifter[[#This Row],[KILOMETERTÆLLER \nSTART]])*Kilometertakst,\"\")","v":{"v":233.10000000000218,"d":"kr. 233.10"}},{"$f":"IF(COUNTA(Udgifter[[#This Row],[DATO]:[KILOMETERTÆLLER \nSLUT]])=0,\"\",SUM(Udgifter[[#This Row],[HOTEL]:[TRANSPORT]],Udgifter[[#This Row],[FORPLEJNING]:[DIV.]],((Udgifter[[#This Row],[KILOMETERTÆLLER \nSLUT]]-Udgifter[[#This Row],[KILOMETERTÆLLER \nSTART]])*(Kilometertakst))))","v":{"v":533.1000000000022,"d":"kr. 533.10"}}]
[null,{"$f":"TODAY()+30","v":"2018-07-04"},"Salg","Konference",{"v":2670,"d":"kr. 2,670.00"},{"v":1350,"d":"kr. 1,350.00"},{"v":120,"d":"kr. 120.00"},null,{"v":30,"d":"kr. 30.00"},{"v":11500,"d":"11,500.0km"},{"v":11560,"d":"11,560.0km"},{"$f":"IF(COUNTA(Udgifter[[#This Row],[KILOMETERTÆLLER \nSTART]:[KILOMETERTÆLLER \nSLUT]])=2,(Udgifter[[#This Row],[KILOMETERTÆLLER \nSLUT]]-Udgifter[[#This Row],[KILOMETERTÆLLER \nSTART]])*Kilometertakst,\"\")","v":{"v":180,"d":"kr. 180.00"}},{"$f":"IF(COUNTA(Udgifter[[#This Row],[DATO]:[KILOMETERTÆLLER \nSLUT]])=0,\"\",SUM(Udgifter[[#This Row],[HOTEL]:[TRANSPORT]],Udgifter[[#This Row],[FORPLEJNING]:[DIV.]],((Udgifter[[#This Row],[KILOMETERTÆLLER \nSLUT]]-Udgifter[[#This Row],[KILOMETERTÆLLER \nSTART]])*(Kilometertakst))))","v":{"v":4350,"d":"kr. 4,350.00"}}]
[{"$nulls":11},{"$f":"IF(COUNTA(Udgifter[[#This Row],[KILOMETERTÆLLER \nSTART]:[KILOMETERTÆLLER \nSLUT]])=2,(Udgifter[[#This Row],[KILOMETERTÆLLER \nSLUT]]-Udgifter[[#This Row],[KILOMETERTÆLLER \nSTART]])*Kilometertakst,\"\")","v":""},{"$f":"IF(COUNTA(Udgifter[[#This Row],[DATO]:[KILOMETERTÆLLER \nSLUT]])=0,\"\",SUM(Udgifter[[#This Row],[HOTEL]:[TRANSPORT]],Udgifter[[#This Row],[FORPLEJNING]:[DIV.]],((Udgifter[[#This Row],[KILOMETERTÆLLER \nSLUT]]-Udgifter[[#This Row],[KILOMETERTÆLLER \nSTART]])*(Kilometertakst))))","v":{"v":0,"d":"kr. 0.00"}}]
[{"$nulls":11},{"$f":"IF(COUNTA(Udgifter[[#This Row],[KILOMETERTÆLLER \nSTART]:[KILOMETERTÆLLER \nSLUT]])=2,(Udgifter[[#This Row],[KILOMETERTÆLLER \nSLUT]]-Udgifter[[#This Row],[KILOMETERTÆLLER \nSTART]])*Kilometertakst,\"\")","v":""},{"$f":"IF(COUNTA(Udgifter[[#This Row],[DATO]:[KILOMETERTÆLLER \nSLUT]])=0,\"\",SUM(Udgifter[[#This Row],[HOTEL]:[TRANSPORT]],Udgifter[[#This Row],[FORPLEJNING]:[DIV.]],((Udgifter[[#This Row],[KILOMETERTÆLLER \nSLUT]]-Udgifter[[#This Row],[KILOMETERTÆLLER \nSTART]])*(Kilometertakst))))","v":{"v":0,"d":"kr. 0.00"}}]
[{"$nulls":11},{"$f":"IF(COUNTA(Udgifter[[#This Row],[KILOMETERTÆLLER \nSTART]:[KILOMETERTÆLLER \nSLUT]])=2,(Udgifter[[#This Row],[KILOMETERTÆLLER \nSLUT]]-Udgifter[[#This Row],[KILOMETERTÆLLER \nSTART]])*Kilometertakst,\"\")","v":""},{"$f":"IF(COUNTA(Udgifter[[#This Row],[DATO]:[KILOMETERTÆLLER \nSLUT]])=0,\"\",SUM(Udgifter[[#This Row],[HOTEL]:[TRANSPORT]],Udgifter[[#This Row],[FORPLEJNING]:[DIV.]],((Udgifter[[#This Row],[KILOMETERTÆLLER \nSLUT]]-Udgifter[[#This Row],[KILOMETERTÆLLER \nSTART]])*(Kilometertakst))))","v":{"v":0,"d":"kr. 0.00"}}]
[{"$nulls":11},{"$f":"IF(COUNTA(Udgifter[[#This Row],[KILOMETERTÆLLER \nSTART]:[KILOMETERTÆLLER \nSLUT]])=2,(Udgifter[[#This Row],[KILOMETERTÆLLER \nSLUT]]-Udgifter[[#This Row],[KILOMETERTÆLLER \nSTART]])*Kilometertakst,\"\")","v":""},{"$f":"IF(COUNTA(Udgifter[[#This Row],[DATO]:[KILOMETERTÆLLER \nSLUT]])=0,\"\",SUM(Udgifter[[#This Row],[HOTEL]:[TRANSPORT]],Udgifter[[#This Row],[FORPLEJNING]:[DIV.]],((Udgifter[[#This Row],[KILOMETERTÆLLER \nSLUT]]-Udgifter[[#This Row],[KILOMETERTÆLLER \nSTART]])*(Kilometertakst))))","v":{"v":0,"d":"kr. 0.00"}}]
[{"$nulls":11},{"$f":"IF(COUNTA(Udgifter[[#This Row],[KILOMETERTÆLLER \nSTART]:[KILOMETERTÆLLER \nSLUT]])=2,(Udgifter[[#This Row],[KILOMETERTÆLLER \nSLUT]]-Udgifter[[#This Row],[KILOMETERTÆLLER \nSTART]])*Kilometertakst,\"\")","v":""},{"$f":"IF(COUNTA(Udgifter[[#This Row],[DATO]:[KILOMETERTÆLLER \nSLUT]])=0,\"\",SUM(Udgifter[[#This Row],[HOTEL]:[TRANSPORT]],Udgifter[[#This Row],[FORPLEJNING]:[DIV.]],((Udgifter[[#This Row],[KILOMETERTÆLLER \nSLUT]]-Udgifter[[#This Row],[KILOMETERTÆLLER \nSTART]])*(Kilometertakst))))","v":{"v":0,"d":"kr. 0.00"}}]
[{"$nulls":11},{"$f":"IF(COUNTA(Udgifter[[#This Row],[KILOMETERTÆLLER \nSTART]:[KILOMETERTÆLLER \nSLUT]])=2,(Udgifter[[#This Row],[KILOMETERTÆLLER \nSLUT]]-Udgifter[[#This Row],[KILOMETERTÆLLER \nSTART]])*Kilometertakst,\"\")","v":""},{"$f":"IF(COUNTA(Udgifter[[#This Row],[DATO]:[KILOMETERTÆLLER \nSLUT]])=0,\"\",SUM(Udgifter[[#This Row],[HOTEL]:[TRANSPORT]],Udgifter[[#This Row],[FORPLEJNING]:[DIV.]],((Udgifter[[#This Row],[KILOMETERTÆLLER \nSLUT]]-Udgifter[[#This Row],[KILOMETERTÆLLER \nSTART]])*(Kilometertakst))))","v":{"v":0,"d":"kr. 0.00"}}]
[{"$nulls":11},{"$f":"IF(COUNTA(Udgifter[[#This Row],[KILOMETERTÆLLER \nSTART]:[KILOMETERTÆLLER \nSLUT]])=2,(Udgifter[[#This Row],[KILOMETERTÆLLER \nSLUT]]-Udgifter[[#This Row],[KILOMETERTÆLLER \nSTART]])*Kilometertakst,\"\")","v":""},{"$f":"IF(COUNTA(Udgifter[[#This Row],[DATO]:[KILOMETERTÆLLER \nSLUT]])=0,\"\",SUM(Udgifter[[#This Row],[HOTEL]:[TRANSPORT]],Udgifter[[#This Row],[FORPLEJNING]:[DIV.]],((Udgifter[[#This Row],[KILOMETERTÆLLER \nSLUT]]-Udgifter[[#This Row],[KILOMETERTÆLLER \nSTART]])*(Kilometertakst))))","v":{"v":0,"d":"kr. 0.00"}}]
[{"$nulls":11},{"$f":"IF(COUNTA(Udgifter[[#This Row],[KILOMETERTÆLLER \nSTART]:[KILOMETERTÆLLER \nSLUT]])=2,(Udgifter[[#This Row],[KILOMETERTÆLLER \nSLUT]]-Udgifter[[#This Row],[KILOMETERTÆLLER \nSTART]])*Kilometertakst,\"\")","v":""},{"$f":"IF(COUNTA(Udgifter[[#This Row],[DATO]:[KILOMETERTÆLLER \nSLUT]])=0,\"\",SUM(Udgifter[[#This Row],[HOTEL]:[TRANSPORT]],Udgifter[[#This Row],[FORPLEJNING]:[DIV.]],((Udgifter[[#This Row],[KILOMETERTÆLLER \nSLUT]]-Udgifter[[#This Row],[KILOMETERTÆLLER \nSTART]])*(Kilometertakst))))","v":{"v":0,"d":"kr. 0.00"}}]
[{"$nulls":11},{"$f":"IF(COUNTA(Udgifter[[#This Row],[KILOMETERTÆLLER \nSTART]:[KILOMETERTÆLLER \nSLUT]])=2,(Udgifter[[#This Row],[KILOMETERTÆLLER \nSLUT]]-Udgifter[[#This Row],[KILOMETERTÆLLER \nSTART]])*Kilometertakst,\"\")","v":""},{"$f":"IF(COUNTA(Udgifter[[#This Row],[DATO]:[KILOMETERTÆLLER \nSLUT]])=0,\"\",SUM(Udgifter[[#This Row],[HOTEL]:[TRANSPORT]],Udgifter[[#This Row],[FORPLEJNING]:[DIV.]],((Udgifter[[#This Row],[KILOMETERTÆLLER \nSLUT]]-Udgifter[[#This Row],[KILOMETERTÆLLER \nSTART]])*(Kilometertakst))))","v":{"v":0,"d":"kr. 0.00"}}]
[null,"TOTALER",null,null,{"$f":"SUBTOTAL(109,Udgifter[HOTEL])","v":{"v":2670,"d":"kr. 2,670.00"}},{"$f":"SUBTOTAL(109,Udgifter[TRANSPORT])","v":{"v":1350,"d":"kr. 1,350.00"}},{"$f":"SUBTOTAL(109,Udgifter[FORPLEJNING])","v":{"v":120,"d":"kr. 120.00"}},{"$f":"SUBTOTAL(109,Udgifter[TELEFON])","v":0},{"$f":"SUBTOTAL(109,Udgifter[DIV.])","v":{"v":330,"d":"kr. 330.00"}},{"$nulls":3},{"$f":"SUBTOTAL(109,Udgifter[[I ALT ]])","v":{"v":4883.100000000002,"d":"kr. 4,883.10"}}]
[{"$nulls":11},"FORTJENESTER",{"v":0,"d":"kr. 0.00"}]
[{"$nulls":11},"I ALT",{"$f":"Udgifter[[#Totals],[I ALT ]]-Fortjenester","v":{"v":4883.100000000002,"d":"kr. 4,883.10"}}]